[Event "Early-Titled-Tuesday-Blitz-May-28-2024"]
[Site "Chess.com"]
[Date "2024.05.28"]
[Round "11"]
[White "JaloliddinIlkhomi"]
[Black "mangochessgo"]
[Result "0-1"]
[WhiteElo "2779"]
[BlackElo "2641"]
[TimeControl "180+1"]
[EndTime "10:11:20 PDT"]
[Termination "mangochessgo won by checkmate"]

1. Nf3 {[%clk 0:03:00.2]} 1... Nf6 {[%clk 0:03:00]} 2. d4 {[%clk 0:03:00]} 2...
b6 {[%clk 0:02:59.9]} 3. Bf4 {[%clk 0:02:59]} 3... Bb7 {[%clk 0:03:00.1]} 4. e3
{[%clk 0:02:59.3]} 4... Nh5 {[%clk 0:02:59.4]} 5. Bg5 {[%clk 0:02:59.3]} 5... h6
{[%clk 0:02:59.6]} 6. Bh4 {[%clk 0:02:59.9]} 6... g5 {[%clk 0:03:00.1]} 7. Bg3
{[%clk 0:03:00.5]} 7... Nxg3 {[%clk 0:02:58.6]} 8. hxg3 {[%clk 0:03:01.4]} 8...
Bg7 {[%clk 0:02:59.2]} 9. Nbd2 {[%clk 0:02:58.5]} 9... d6 {[%clk 0:02:59.5]} 10.
c3 {[%clk 0:02:58.5]} 10... Nd7 {[%clk 0:02:59.6]} 11. Bd3 {[%clk 0:02:57.5]}
11... e6 {[%clk 0:02:59.5]} 12. Be4 {[%clk 0:02:57.6]} 12... d5 {[%clk
0:02:59.5]} 13. Bd3 {[%clk 0:02:58.1]} 13... c5 {[%clk 0:02:57.4]} 14. Qe2
{[%clk 0:02:57.8]} 14... f5 {[%clk 0:02:54.2]} 15. Bb5 {[%clk 0:02:52.1]} 15...
O-O {[%clk 0:02:45.2]} 16. Bxd7 {[%clk 0:02:35]} 16... Qxd7 {[%clk 0:02:44.9]}
17. Ne5 {[%clk 0:02:35.9]} 17... Qc7 {[%clk 0:02:27.4]} 18. Qh5 {[%clk
0:02:32.3]} 18... Bc6 {[%clk 0:01:37.5]} 19. Nxc6 {[%clk 0:01:55.1]} 19... Qxc6
{[%clk 0:01:37.3]} 20. Nf3 {[%clk 0:01:47]} 20... Qe8 {[%clk 0:01:23.2]} 21. Qh2
{[%clk 0:01:37.2]} 21... a5 {[%clk 0:01:17.5]} 22. Ne5 {[%clk 0:01:35.2]} 22...
a4 {[%clk 0:01:04.3]} 23. a3 {[%clk 0:01:06.5]} 23... Ra7 {[%clk 0:01:01.8]} 24.
Qh5 {[%clk 0:00:45.3]} 24... Qxh5 {[%clk 0:00:53.6]} 25. Rxh5 {[%clk 0:00:46.2]}
25... Bxe5 {[%clk 0:00:36.6]} 26. dxe5 {[%clk 0:00:47.1]} 26... Kg7 {[%clk
0:00:37]} 27. Ke2 {[%clk 0:00:47.6]} 27... b5 {[%clk 0:00:36.5]} 28. Rah1 {[%clk
0:00:47.6]} 28... Rh8 {[%clk 0:00:36.5]} 29. Rc1 {[%clk 0:00:36.7]} 29... Kg6
{[%clk 0:00:34.8]} 30. Rch1 {[%clk 0:00:33.5]} 30... Rb7 {[%clk 0:00:34.4]} 31.
f4 {[%clk 0:00:32.2]} 31... g4 {[%clk 0:00:30]} 32. Rg5+ {[%clk 0:00:28.2]}
32... Kh7 {[%clk 0:00:23.9]} 33. Rgh5 {[%clk 0:00:26.6]} 33... Kg7 {[%clk
0:00:23.9]} 34. Rc1 {[%clk 0:00:25.2]} 34... Kg6 {[%clk 0:00:19.4]} 35. Rh4
{[%clk 0:00:22.4]} 35... h5 {[%clk 0:00:18.3]} 36. Kd3 {[%clk 0:00:23.1]} 36...
Rhb8 {[%clk 0:00:17.4]} 37. Rch1 {[%clk 0:00:22.9]} 37... Rh7 {[%clk 0:00:17.4]}
38. Rc1 {[%clk 0:00:22.6]} 38... Rc7 {[%clk 0:00:16.1]} 39. Rch1 {[%clk
0:00:22]} 39... Rh8 {[%clk 0:00:16]} 40. Rc1 {[%clk 0:00:21.9]} 40... Rc6 {[%clk
0:00:15.6]} 41. Kd2 {[%clk 0:00:21.6]} 41... Rb6 {[%clk 0:00:11.9]} 42. Kd3
{[%clk 0:00:20.9]} 42... Rb7 {[%clk 0:00:10.4]} 43. Kd2 {[%clk 0:00:21]} 43...
Rbh7 {[%clk 0:00:10.5]} 44. Kc2 {[%clk 0:00:20.4]} 44... Kf7 {[%clk 0:00:09.5]}
45. Kb1 {[%clk 0:00:19.8]} 45... Ke7 {[%clk 0:00:09.3]} 46. Ka2 {[%clk
0:00:20.3]} 46... Kd7 {[%clk 0:00:08.8]} 47. Rch1 {[%clk 0:00:20.2]} 47... Kc6
{[%clk 0:00:08.8]} 48. Rd1 {[%clk 0:00:20.6]} 48... Kb6 {[%clk 0:00:08.8]} 49.
Rc1 {[%clk 0:00:21.1]} 49... Ka5 {[%clk 0:00:08.7]} 50. Rh2 {[%clk 0:00:19.5]}
50... h4 {[%clk 0:00:06]} 51. Rch1 {[%clk 0:00:17.2]} 51... h3 {[%clk
0:00:06.4]} 52. gxh3 {[%clk 0:00:17.8]} 52... Rxh3 {[%clk 0:00:06.5]} 53. Rxh3
{[%clk 0:00:15.3]} 53... Rxh3 {[%clk 0:00:07.4]} 54. Rg1 {[%clk 0:00:15.7]}
54... Rh2 {[%clk 0:00:07.8]} 55. Kb1 {[%clk 0:00:15.8]} 55... b4 {[%clk
0:00:07.6]} 56. axb4+ {[%clk 0:00:14.6]} 56... cxb4 {[%clk 0:00:08]} 57. cxb4+
{[%clk 0:00:15.5]} 57... Kxb4 {[%clk 0:00:08.3]} 58. Rc1 {[%clk 0:00:15.2]}
58... Rg2 {[%clk 0:00:07.1]} 59. Rc6 {[%clk 0:00:15.4]} 59... Rxg3 {[%clk
0:00:05.1]} 60. Rxe6 {[%clk 0:00:15.8]} 60... Rg1+ {[%clk 0:00:04.6]} 61. Ka2
{[%clk 0:00:15.5]} 61... Re1 {[%clk 0:00:02]} 62. Rf6 {[%clk 0:00:14.4]} 62...
Rxe3 {[%clk 0:00:01]} 63. Rxf5 {[%clk 0:00:14.8]} 63... g3 {[%clk 0:00:01.5]}
64. Rg5 {[%clk 0:00:15.7]} 64... d4 {[%clk 0:00:01.9]} 65. e6 {[%clk 0:00:08.3]}
65... d3 {[%clk 0:00:02.2]} 66. e7 {[%clk 0:00:09.1]} 66... d2 {[%clk
0:00:02.3]} 67. Rxg3 {[%clk 0:00:08.6]} 67... Rxe7 {[%clk 0:00:01.5]} 68. Rd3
{[%clk 0:00:09.5]} 68... Re2 {[%clk 0:00:01.4]} 69. f5 {[%clk 0:00:10.3]} 69...
Kc4 {[%clk 0:00:01]} 70. Rd8 {[%clk 0:00:10.6]} 70... a3 {[%clk 0:00:00.8]} 71.
f6 {[%clk 0:00:11.5]} 71... axb2 {[%clk 0:00:01]} 72. f7 {[%clk 0:00:06.9]}
72... Rf2 {[%clk 0:00:01.5]} 73. Rxd2 {[%clk 0:00:05.9]} 73... Rxf7 {[%clk
0:00:01.7]} 74. Kxb2 {[%clk 0:00:06.8]} 74... Rb7+ {[%clk 0:00:01.9]} 75. Kc2
{[%clk 0:00:07.5]} 75... Ra7 {[%clk 0:00:01.9]} 76. Rh2 {[%clk 0:00:08.3]} 76...
Ra2+ {[%clk 0:00:02.1]} 77. Kd1 {[%clk 0:00:09.2]} 77... Rxh2 {[%clk 0:00:03]}
78. Ke1 {[%clk 0:00:10.1]} 78... Kd3 {[%clk 0:00:03.5]} 79. Kf1 {[%clk 0:00:11]}
79... Ke3 {[%clk 0:00:04.1]} 80. Kg1 {[%clk 0:00:11.9]} 80... Ra2 {[%clk
0:00:04.4]} 81. Kf1 {[%clk 0:00:12.8]} 81... Rb2 {[%clk 0:00:05]} 82. Ke1 {[%clk
0:00:13.7]} 82... Rb1# {[%clk 0:00:05.1]} 0-1

[Event "Early-Titled-Tuesday-Blitz-May-28-2024"]
[Site "Chess.com"]
[Date "2024.05.28"]
[Round "11"]
[White "AryanTari"]
[Black "Lennis93"]
[Result "1/2-1/2"]
[WhiteElo "3029"]
[BlackElo "2786"]
[TimeControl "180+1"]
[EndTime "10:11:24 PDT"]
[Termination "Game drawn by repetition"]

1. e4 {[%clk 0:03:00.9]} 1... c5 {[%clk 0:02:55.7]} 2. Nc3 {[%clk 0:02:59.8]}
2... Nc6 {[%clk 0:02:46.9]} 3. f4 {[%clk 0:02:58.6]} 3... g6 {[%clk 0:02:46.5]}
4. Nf3 {[%clk 0:02:58.8]} 4... Bg7 {[%clk 0:02:47.1]} 5. Bb5 {[%clk 0:02:59.2]}
5... Nd4 {[%clk 0:02:43.8]} 6. O-O {[%clk 0:02:58.5]} 6... Nxb5 {[%clk 0:02:43]}
7. Nxb5 {[%clk 0:02:59.4]} 7... Nf6 {[%clk 0:02:41.6]} 8. e5 {[%clk 0:02:43.5]}
8... Nd5 {[%clk 0:02:36.7]} 9. d4 {[%clk 0:02:43.6]} 9... cxd4 {[%clk
0:02:14.3]} 10. Nbxd4 {[%clk 0:02:23.4]} 10... d6 {[%clk 0:02:06.5]} 11. Nb5
{[%clk 0:02:20.6]} 11... Qb6+ {[%clk 0:01:49.2]} 12. Nbd4 {[%clk 0:02:20.8]}
12... Bg4 {[%clk 0:01:39.4]} 13. Kh1 {[%clk 0:02:18.2]} 13... dxe5 {[%clk
0:01:38.6]} 14. fxe5 {[%clk 0:02:15.2]} 14... Rd8 {[%clk 0:01:15.2]} 15. Qe1
{[%clk 0:02:07.4]} 15... Nb4 {[%clk 0:01:03.9]} 16. Be3 {[%clk 0:02:03.9]} 16...
Nd5 {[%clk 0:00:44.3]} 17. Bg1 {[%clk 0:01:54.7]} 17... Qxb2 {[%clk 0:00:24.5]}
18. c4 {[%clk 0:01:47.4]} 18... Nf4 {[%clk 0:00:13.2]} 19. Qg3 {[%clk
0:01:46.1]} 19... Bxf3 {[%clk 0:00:13.1]} 20. Nxf3 {[%clk 0:01:15.8]} 20... Ne6
{[%clk 0:00:11]} 21. Qh4 {[%clk 0:01:13.7]} 21... O-O {[%clk 0:00:09.9]} 22.
Qxe7 {[%clk 0:01:13.4]} 22... Rfe8 {[%clk 0:00:07.4]} 23. Qh4 {[%clk 0:01:13.4]}
23... b6 {[%clk 0:00:07]} 24. a4 {[%clk 0:01:08.7]} 24... Qc3 {[%clk 0:00:06.3]}
25. a5 {[%clk 0:01:05.9]} 25... bxa5 {[%clk 0:00:06.3]} 26. c5 {[%clk
0:01:05.3]} 26... Rd5 {[%clk 0:00:05.1]} 27. Rac1 {[%clk 0:01:04]} 27... Qb4
{[%clk 0:00:05]} 28. Rc4 {[%clk 0:01:04.6]} 28... Qb5 {[%clk 0:00:04.7]} 29. c6
{[%clk 0:01:04.6]} 29... Rc8 {[%clk 0:00:05.2]} 30. Rfc1 {[%clk 0:01:03.7]}
30... a4 {[%clk 0:00:04.8]} 31. Qe7 {[%clk 0:01:01.3]} 31... a3 {[%clk
0:00:03.1]} 32. Qxa3 {[%clk 0:01:01.2]} 32... a5 {[%clk 0:00:02.3]} 33. h3
{[%clk 0:00:57.5]} 33... Bf8 {[%clk 0:00:02.6]} 34. Qa1 {[%clk 0:00:56.3]} 34...
Bh6 {[%clk 0:00:02.9]} 35. R1c2 {[%clk 0:00:51.5]} 35... Bf8 {[%clk 0:00:03.1]}
36. Nd4 {[%clk 0:00:42.7]} 36... Nxd4 {[%clk 0:00:01.8]} 37. Bxd4 {[%clk
0:00:43.6]} 37... Bb4 {[%clk 0:00:01.5]} 38. c7 {[%clk 0:00:37.2]} 38... Rd7
{[%clk 0:00:01.2]} 39. e6 {[%clk 0:00:29.7]} 39... fxe6 {[%clk 0:00:01]} 40. Qa2
{[%clk 0:00:25.2]} 40... Rd5 {[%clk 0:00:01.4]} 41. Qa1 {[%clk 0:00:21.8]} 41...
Qd7 {[%clk 0:00:02]} 42. Qg1 {[%clk 0:00:20.6]} 42... e5 {[%clk 0:00:02.3]} 43.
Qe3 {[%clk 0:00:06.7]} 43... exd4 {[%clk 0:00:02.6]} 44. Qd3 {[%clk 0:00:07.4]}
44... Re5 {[%clk 0:00:02.7]} 45. Rxd4 {[%clk 0:00:06.8]} 45... Re1+ {[%clk
0:00:02.9]} 46. Kh2 {[%clk 0:00:07.4]} 46... Qe7 {[%clk 0:00:03]} 47. Rd8+
{[%clk 0:00:07.7]} 47... Kg7 {[%clk 0:00:03]} 48. Qd4+ {[%clk 0:00:07.1]} 48...
Kh6 {[%clk 0:00:01.6]} 49. Rxc8 {[%clk 0:00:06]} 49... Bd6+ {[%clk 0:00:01.9]}
50. g3 {[%clk 0:00:06.6]} 50... Re2+ {[%clk 0:00:01.8]} 51. Rxe2 {[%clk
0:00:07.3]} 51... Qxe2+ {[%clk 0:00:02.3]} 52. Kg1 {[%clk 0:00:08.1]} 52... Qe1+
{[%clk 0:00:02.4]} 53. Kg2 {[%clk 0:00:08.8]} 53... Qxg3+ {[%clk 0:00:02.5]} 54.
Kf1 {[%clk 0:00:09.5]} 54... Qxh3+ {[%clk 0:00:02.9]} 55. Ke2 {[%clk 0:00:09.6]}
55... Qxc8 {[%clk 0:00:03.8]} 56. Qxd6 {[%clk 0:00:09.1]} 56... Qg4+ {[%clk
0:00:02.6]} 57. Kd3 {[%clk 0:00:08.8]} 57... Qd1+ {[%clk 0:00:02.7]} 58. Ke4
{[%clk 0:00:06.6]} 58... Qxd6 {[%clk 0:00:03.6]} 59. c8=Q {[%clk 0:00:07]} 59...
Qe7+ {[%clk 0:00:04]} 60. Kf3 {[%clk 0:00:06.6]} 60... Qg5 {[%clk 0:00:04.9]}
61. Qf8+ {[%clk 0:00:05.5]} 61... Kh5 {[%clk 0:00:05.2]} 62. Qg8 {[%clk
0:00:05.6]} 62... Qf5+ {[%clk 0:00:05.4]} 63. Kg3 {[%clk 0:00:06]} 63... h6
{[%clk 0:00:05.9]} 64. Qa2 {[%clk 0:00:06]} 64... Qg5+ {[%clk 0:00:05.7]} 65.
Kf3 {[%clk 0:00:06.3]} 65... Qg4+ {[%clk 0:00:06]} 66. Ke3 {[%clk 0:00:06.7]}
66... Qg3+ {[%clk 0:00:06.2]} 67. Ke4 {[%clk 0:00:07.3]} 67... Qh4+ {[%clk
0:00:05.8]} 68. Kf3 {[%clk 0:00:07.6]} 68... Qh3+ {[%clk 0:00:05.9]} 69. Ke4
{[%clk 0:00:07.2]} 69... a4 {[%clk 0:00:06.2]} 70. Qa1 {[%clk 0:00:05.2]} 70...
Qf5+ {[%clk 0:00:06.2]} 71. Ke3 {[%clk 0:00:05.3]} 71... Qe6+ {[%clk 0:00:05.4]}
72. Kf3 {[%clk 0:00:05.1]} 72... Qb3+ {[%clk 0:00:05.5]} 73. Kg2 {[%clk
0:00:03.9]} 73... a3 {[%clk 0:00:05]} 74. Qh1+ {[%clk 0:00:04]} 74... Kg5 {[%clk
0:00:05]} 75. Qc1+ {[%clk 0:00:03.7]} 75... Kf5 {[%clk 0:00:05.2]} 76. Qc5+
{[%clk 0:00:04.2]} 76... Ke4 {[%clk 0:00:05.3]} 77. Qe7+ {[%clk 0:00:04.1]}
77... Kd3 {[%clk 0:00:05.5]} 78. Qd6+ {[%clk 0:00:02.2]} 78... Ke2 {[%clk
0:00:04.5]} 79. Qe5+ {[%clk 0:00:01.2]} 79... Kd1 {[%clk 0:00:03.7]} 80. Qd6+
{[%clk 0:00:01.3]} 80... Kc1 {[%clk 0:00:03.8]} 81. Qf4+ {[%clk 0:00:01.4]}
81... Kb2 {[%clk 0:00:02.7]} 82. Qf6+ {[%clk 0:00:01.4]} 82... Qc3 {[%clk
0:00:02.7]} 83. Qb6+ {[%clk 0:00:02.1]} 83... Kc1 {[%clk 0:00:02.5]} 84. Qxg6
{[%clk 0:00:01.5]} 84... Qb2+ {[%clk 0:00:03.4]} 85. Kh1 {[%clk 0:00:01.3]}
85... a2 {[%clk 0:00:04]} 86. Qg1+ {[%clk 0:00:01.5]} 86... Kc2 {[%clk
0:00:04.4]} 87. Qf2+ {[%clk 0:00:02.1]} 87... Kb3 {[%clk 0:00:05.3]} 88. Qb6+
{[%clk 0:00:02.3]} 88... Kc2 {[%clk 0:00:05.7]} 89. Qf2+ {[%clk 0:00:02.5]}
89... Kc3 {[%clk 0:00:06.3]} 90. Qf6+ {[%clk 0:00:02.6]} 90... Kc2 {[%clk
0:00:06.2]} 91. Qf5+ {[%clk 0:00:02]} 91... Kc1 {[%clk 0:00:06.4]} 92. Qf1+
{[%clk 0:00:02.2]} 92... Kd2 {[%clk 0:00:06.6]} 93. Qf2+ {[%clk 0:00:02.3]}
93... Kc3 {[%clk 0:00:06.9]} 94. Qf6+ {[%clk 0:00:03]} 94... Kb3 {[%clk
0:00:07.4]} 95. Qf7+ {[%clk 0:00:03.1]} 95... Ka3 {[%clk 0:00:07.9]} 96. Qa7+
{[%clk 0:00:03.3]} 96... Kb4 {[%clk 0:00:08.3]} 97. Qb7+ {[%clk 0:00:03]} 97...
Ka3 {[%clk 0:00:08.8]} 98. Qa7+ {[%clk 0:00:03.2]} 98... Kb3 {[%clk 0:00:09.7]}
99. Qf7+ {[%clk 0:00:03.2]} 99... Kc2 {[%clk 0:00:09.3]} 100. Qf2+ {[%clk
0:00:03.3]} 1/2-1/2

[Event "Early-Titled-Tuesday-Blitz-May-28-2024"]
[Site "Chess.com"]
[Date "2024.05.28"]
[Round "11"]
[White "TigrVShlyape"]
[Black "mishanick"]
[Result "1/2-1/2"]
[WhiteElo "2918"]
[BlackElo "3037"]
[TimeControl "180+1"]
[EndTime "10:12:31 PDT"]
[Termination "Game drawn by repetition"]

1. d4 {[%clk 0:03:00.9]} 1... Nf6 {[%clk 0:02:55.6]} 2. Bf4 {[%clk 0:03:00.8]}
2... d5 {[%clk 0:02:52.9]} 3. e3 {[%clk 0:03:01.1]} 3... e6 {[%clk 0:02:53.7]}
4. Nf3 {[%clk 0:03:00.1]} 4... Bd6 {[%clk 0:02:54.3]} 5. Nbd2 {[%clk 0:02:58.8]}
5... O-O {[%clk 0:02:53.6]} 6. c3 {[%clk 0:02:57.7]} 6... c5 {[%clk 0:02:53.8]}
7. Bd3 {[%clk 0:02:50.9]} 7... Bxf4 {[%clk 0:02:41.5]} 8. exf4 {[%clk 0:02:50]}
8... cxd4 {[%clk 0:02:42.2]} 9. Nxd4 {[%clk 0:02:48.8]} 9... Qb6 {[%clk
0:02:40.1]} 10. Rb1 {[%clk 0:02:44]} 10... Qc7 {[%clk 0:02:40.3]} 11. g3 {[%clk
0:02:39.9]} 11... e5 {[%clk 0:02:40.8]} 12. fxe5 {[%clk 0:02:39.7]} 12... Qxe5+
{[%clk 0:02:41]} 13. Qe2 {[%clk 0:02:39.7]} 13... Qd6 {[%clk 0:02:40.2]} 14. O-O
{[%clk 0:02:39.4]} 14... Nc6 {[%clk 0:02:40.9]} 15. N2b3 {[%clk 0:02:34.4]}
15... Re8 {[%clk 0:02:38.2]} 16. Qd2 {[%clk 0:02:26.8]} 16... Ne5 {[%clk
0:02:33.8]} 17. Rfe1 {[%clk 0:02:22.5]} 17... Bg4 {[%clk 0:02:31.8]} 18. Qc2
{[%clk 0:02:06.5]} 18... h5 {[%clk 0:02:23.9]} 19. h4 {[%clk 0:02:03.9]} 19...
Rad8 {[%clk 0:02:21.3]} 20. Nd2 {[%clk 0:02:01.3]} 20... a6 {[%clk 0:02:17.2]}
21. Bf1 {[%clk 0:01:56.9]} 21... Qd7 {[%clk 0:02:13.5]} 22. Bg2 {[%clk
0:01:55.6]} 22... Bh3 {[%clk 0:02:12.5]} 23. Bh1 {[%clk 0:01:55.1]} 23... g6
{[%clk 0:02:11.3]} 24. Re2 {[%clk 0:01:53]} 24... Nc6 {[%clk 0:02:11.3]} 25.
N2b3 {[%clk 0:01:47.3]} 25... Bg4 {[%clk 0:02:11]} 26. Ree1 {[%clk 0:01:45.3]}
26... Ne5 {[%clk 0:02:09.3]} 27. Nd2 {[%clk 0:01:41.6]} 27... Qc8 {[%clk
0:02:04.9]} 28. Re3 {[%clk 0:01:38.5]} 28... Nc6 {[%clk 0:02:01.6]} 29. Rxe8+
{[%clk 0:01:32.2]} 29... Rxe8 {[%clk 0:02:02.5]} 30. N2b3 {[%clk 0:01:32]} 30...
Ne5 {[%clk 0:02:01.7]} 31. Re1 {[%clk 0:01:29.8]} 31... Bf5 {[%clk 0:01:56.5]}
32. Qd2 {[%clk 0:01:16.8]} 32... Be4 {[%clk 0:01:56]} 33. Bg2 {[%clk 0:01:07.9]}
33... Bxg2 {[%clk 0:01:46.8]} 34. Kxg2 {[%clk 0:01:07.9]} 34... Ne4 {[%clk
0:01:47.5]} 35. Qc2 {[%clk 0:01:02.8]} 35... Nc4 {[%clk 0:01:29]} 36. Nf3 {[%clk
0:00:53.7]} 36... Kg7 {[%clk 0:01:13.1]} 37. Nbd4 {[%clk 0:00:52.5]} 37... Qg4
{[%clk 0:00:55.3]} 38. Re2 {[%clk 0:00:48.8]} 38... b5 {[%clk 0:00:50.1]} 39.
Qd3 {[%clk 0:00:46.3]} 39... Nc5 {[%clk 0:00:42.6]} 40. Qc2 {[%clk 0:00:40.5]}
40... Ne4 {[%clk 0:00:40.7]} 41. b3 {[%clk 0:00:38.3]} 41... Ncd6 {[%clk
0:00:38.8]} 42. Qd3 {[%clk 0:00:37.7]} 42... Qd7 {[%clk 0:00:20.7]} 43. Nc2
{[%clk 0:00:35.2]} 43... Nf5 {[%clk 0:00:19.2]} 44. Ne3 {[%clk 0:00:31.8]} 44...
Nxe3+ {[%clk 0:00:13.8]} 45. Rxe3 {[%clk 0:00:32.1]} 45... Nf6 {[%clk
0:00:10.6]} 46. Rxe8 {[%clk 0:00:26.2]} 46... Qxe8 {[%clk 0:00:11.5]} 47. Nd4
{[%clk 0:00:20.6]} 47... Qe1 {[%clk 0:00:08.6]} 48. Nf3 {[%clk 0:00:19.7]} 48...
Qe4 {[%clk 0:00:06.8]} 49. Qd4 {[%clk 0:00:19.3]} 49... Qf5 {[%clk 0:00:04.6]}
50. Ng5 {[%clk 0:00:16.9]} 50... Kg8 {[%clk 0:00:03.9]} 51. a4 {[%clk
0:00:14.8]} 51... bxa4 {[%clk 0:00:03.7]} 52. Qxa4 {[%clk 0:00:13.4]} 52... Ng4
{[%clk 0:00:02.7]} 53. Qd4 {[%clk 0:00:13.2]} 53... f6 {[%clk 0:00:02.7]} 54.
Nf3 {[%clk 0:00:12.7]} 54... Qe4 {[%clk 0:00:02.2]} 55. Qc5 {[%clk 0:00:10.9]}
55... Ne5 {[%clk 0:00:01.8]} 56. Qe3 {[%clk 0:00:05.4]} 56... Ng4 {[%clk
0:00:01.3]} 57. Qxe4 {[%clk 0:00:04.5]} 57... dxe4 {[%clk 0:00:02.2]} 58. Nd4
{[%clk 0:00:03.7]} 58... f5 {[%clk 0:00:02.6]} 59. Ne6 {[%clk 0:00:01.4]} 59...
Kf7 {[%clk 0:00:02.4]} 60. Nc7 {[%clk 0:00:01.5]} 60... a5 {[%clk 0:00:03]} 61.
Nd5 {[%clk 0:00:01.1]} 61... e3 {[%clk 0:00:03.6]} 62. Nxe3 {[%clk 0:00:00.7]}
62... Ne5 {[%clk 0:00:04.3]} 63. f4 {[%clk 0:00:01.1]} 63... Nd3 {[%clk
0:00:04.4]} 64. Nc4 {[%clk 0:00:01.6]} 64... Nc5 {[%clk 0:00:03.9]} 65. Nxa5
{[%clk 0:00:01.9]} 65... Ne4 {[%clk 0:00:04.7]} 66. Kf3 {[%clk 0:00:02.4]} 66...
Nxc3 {[%clk 0:00:04.9]} 67. b4 {[%clk 0:00:02.9]} 67... Ke6 {[%clk 0:00:05.2]}
68. Nc4 {[%clk 0:00:03.2]} 68... Ne4 {[%clk 0:00:04.3]} 69. Ne5 {[%clk
0:00:03.5]} 69... Nf6 {[%clk 0:00:04]} 70. b5 {[%clk 0:00:03.8]} 70... Nd5
{[%clk 0:00:04.2]} 71. Nxg6 {[%clk 0:00:04.3]} 71... Nf6 {[%clk 0:00:04.5]} 72.
Ne5 {[%clk 0:00:04.7]} 72... Kd5 {[%clk 0:00:05.2]} 73. Ke3 {[%clk 0:00:05.3]}
73... Kc5 {[%clk 0:00:05.7]} 74. Nf7 {[%clk 0:00:05.5]} 74... Ng4+ {[%clk
0:00:03.1]} 75. Kf3 {[%clk 0:00:05.3]} 75... Nh2+ {[%clk 0:00:02.3]} 76. Ke2
{[%clk 0:00:05.2]} 76... Ng4 {[%clk 0:00:03.1]} 77. Ne5 {[%clk 0:00:05.1]} 77...
Nf6 {[%clk 0:00:02.8]} 78. Ng6 {[%clk 0:00:05.5]} 78... Ne4 {[%clk 0:00:02.1]}
79. Kf3 {[%clk 0:00:05.4]} 79... Kxb5 {[%clk 0:00:02]} 80. Ne7 {[%clk
0:00:05.4]} 80... Nd6 {[%clk 0:00:02.6]} 81. Ke3 {[%clk 0:00:05.2]} 81... Kc4
{[%clk 0:00:02.5]} 82. Ng8 {[%clk 0:00:03.2]} 82... Ne8 {[%clk 0:00:03]} 83. Nh6
{[%clk 0:00:02.7]} 83... Ng7 {[%clk 0:00:03.3]} 84. Nf7 {[%clk 0:00:02.9]} 84...
Kd5 {[%clk 0:00:03.8]} 85. Kd3 {[%clk 0:00:03]} 85... Ne6 {[%clk 0:00:03.8]} 86.
Ng5 {[%clk 0:00:02.7]} 86... Nc5+ {[%clk 0:00:04.1]} 87. Ke3 {[%clk 0:00:03.1]}
87... Nd7 {[%clk 0:00:04.5]} 88. Nf3 {[%clk 0:00:03.1]} 88... Nf6 {[%clk
0:00:04.6]} 89. Nd4 {[%clk 0:00:03.4]} 89... Ng4+ {[%clk 0:00:04.9]} 90. Kd3
{[%clk 0:00:03.9]} 90... Nf2+ {[%clk 0:00:05.4]} 91. Ke3 {[%clk 0:00:04.4]}
91... Nd1+ {[%clk 0:00:05.8]} 92. Kd3 {[%clk 0:00:04.7]} 92... Nb2+ {[%clk
0:00:05.9]} 93. Ke3 {[%clk 0:00:05.1]} 93... Nc4+ {[%clk 0:00:06.2]} 94. Kd3
{[%clk 0:00:05.6]} 94... Nb2+ {[%clk 0:00:06.6]} 95. Ke3 {[%clk 0:00:06.1]}
95... Nd1+ {[%clk 0:00:07]} 96. Kd3 {[%clk 0:00:06.6]} 96... Nf2+ {[%clk
0:00:06.8]} 97. Ke3 {[%clk 0:00:06.9]} 97... Ng4+ {[%clk 0:00:07.4]} 98. Kd3
{[%clk 0:00:07.4]} 98... Nh6 {[%clk 0:00:07.5]} 99. Ke3 {[%clk 0:00:07.3]} 99...
Kd6 {[%clk 0:00:06.7]} 100. Nf3 {[%clk 0:00:06.9]} 100... Kd5 {[%clk 0:00:05.7]}
101. Ne5 {[%clk 0:00:07]} 101... Ke6 {[%clk 0:00:04.4]} 102. Kd4 {[%clk
0:00:07]} 102... Ng8 {[%clk 0:00:04.7]} 103. Nd3 {[%clk 0:00:06.5]} 103... Nf6
{[%clk 0:00:04.4]} 104. Ke3 {[%clk 0:00:05.4]} 104... Kd5 {[%clk 0:00:03.2]}
105. Ne5 {[%clk 0:00:05.2]} 105... Ke6 {[%clk 0:00:03]} 106. Kf3 {[%clk
0:00:05.2]} 106... Ne4 {[%clk 0:00:02.8]} 107. Nd3 {[%clk 0:00:04.6]} 107... Kd5
{[%clk 0:00:02.5]} 108. Ne5 {[%clk 0:00:04.7]} 108... Ke6 {[%clk 0:00:02.9]}
109. Nc6 {[%clk 0:00:04.2]} 109... Nd6 {[%clk 0:00:02.1]} 110. Nb4 {[%clk
0:00:03.6]} 110... Ne4 {[%clk 0:00:02.1]} 111. Nc2 {[%clk 0:00:03.7]} 111...
Nd2+ {[%clk 0:00:02.4]} 112. Ke2 {[%clk 0:00:03.7]} 112... Ne4 {[%clk
0:00:02.7]} 113. Kf3 {[%clk 0:00:04.1]} 113... Nd2+ {[%clk 0:00:03.3]} 114. Kg2
{[%clk 0:00:04.4]} 114... Ne4 {[%clk 0:00:03.7]} 115. Nd4+ {[%clk 0:00:04.1]}
115... Kf6 {[%clk 0:00:04.3]} 116. Kf3 {[%clk 0:00:04.6]} 116... Nd2+ {[%clk
0:00:04.5]} 117. Ke3 {[%clk 0:00:05]} 117... Ne4 {[%clk 0:00:04.9]} 118. Ne2
{[%clk 0:00:05.4]} 118... Nd6 {[%clk 0:00:04.9]} 119. Kd4 {[%clk 0:00:05.3]}
119... Ke6 {[%clk 0:00:05.2]} 120. Nc3 {[%clk 0:00:05.4]} 120... Nf7 {[%clk
0:00:04.3]} 121. Kc5 {[%clk 0:00:05.3]} 121... Nd6 {[%clk 0:00:04.2]} 122. Kd4
{[%clk 0:00:04.8]} 122... Nb7 {[%clk 0:00:04.4]} 123. Nd5 {[%clk 0:00:04.5]}
123... Nd6 {[%clk 0:00:04.3]} 124. Nc3 {[%clk 0:00:04.4]} 1/2-1/2